bitfinex-derivatives/quotes_SOLF0:USTF0_20230901
["timestamp","ask_amount","ask_price","bid_price","bid_amount"]
[1693590443156,15.65,19.178,19.173,229.36]
[1693590443359,5.5120468,19.177,19.17,229.36]
[1693590443558,5.5120468,19.182,19.17,229.36]
[1693590443863,15.65,19.18,19.17,229.36]
[1693590444058,15.65,19.178,19.17,229.36]
[1693590444361,5.5120468,19.177,19.17,229.36]
[1693590444562,5.5120468,19.182,19.17,229.36]
[1693590444758,245.01,19.18,19.167,229.36]
[1693590444958,229.36,19.175,19.161,229.36]
[1693590445261,906.06746,19.181,19.158,204.48595458]
[1693590445262,15.65,19.17,19.158,204.48595458]
[1693590445461,5.96659226,19.169,19.158,204.48595458]
[1693590445661,15.65,19.167,19.158,204.48595458]
[1693590445862,15.65,19.165,19.158,204.48595458]
[1693590446164,15.65,19.163,19.158,204.48595458]
[1693590446358,16.10454546,19.17,19.158,204.48595458]
[1693590446558,5.5041688,19.169,19.158,204.48595458]
[1693590446759,15.65,19.167,19.155,229.36]
[1693590446961,234.40962334,19.169,19.155,229.36]
[1693590446962,15.65,19.165,19.155,229.36]
[1693590447162,15.65,19.163,19.155,229.36]
[1693590447359,15.65,19.161,19.155,229.36]
[1693590447556,15.65,19.167,19.155,229.36]
[1693590447754,0.45454546,19.168,19.155,229.36]
[1693590447755,15.65,19.165,19.155,229.36]
[1693590447960,15.65,19.163,19.155,229.36]
[1693590448160,15.65,19.161,19.155,229.36]
[1693590448461,5.05364763,19.16,19.155,229.36]
[1693590448663,5.05364763,19.159,19.155,229.36]
[1693590448858,15.65,19.167,19.155,229.36]
[1693590449065,229.36,19.169,19.155,229.36]
[1693590449066,15.65,19.165,19.155,229.36]
[1693590449258,15.65,19.163,19.155,229.36]
[1693590449465,15.65,19.161,19.155,229.36]
[1693590449660,5.05136121,19.16,19.155,229.36]
[1693590449860,5.05136121,19.159,19.155,229.36]
[1693590450057,15.65,19.167,19.155,229.36]
[1693590450260,15.65,19.165,19.155,229.36]
[1693590450468,15.65,19.163,19.155,229.36]
[1693590450764,15.65,19.161,19.153,229.36]
[1693590450954,229.36,19.166,19.153,229.36]
[1693590450955,5.05014793,19.16,19.153,229.36]
[1693590451156,5.05014793,19.159,19.153,229.36]
[1693590451356,15.65,19.165,19.153,229.36]
[1693590451564,15.65,19.163,19.154,5.51]
[1693590451762,15.65,19.163,19.153,229.36]
[1693590451763,5.04990624,19.162,19.155,229.36]
[1693590451963,15.65,19.165,19.157,229.36]
[1693590452162,15.65,19.163,19.155,229.36]
[1693590452466,229.81454546,19.167,19.147,20.72]
[1693590452467,245.01,19.161,19.149,5.51]
[1693590452661,5.04949248,19.16,19.149,5.51]
[1693590454364,229.36,19.161,19.149,5.51]
[1693590454557,5.04766168,19.16,19.149,5.51]
[1693590456567,229.36,19.161,19.149,5.51]
[1693590457066,229.36,19.161,19.158,0.06297783]
[1693590457264,270.33286012,19.161,19.158,0.06297783]
[1693590457668,229.36,19.161,19.158,0.06297783]
[1693590458465,229.36,19.164,19.158,0.06297783]
[1693590458669,5.04612517,19.163,19.158,0.06297783]
[1693590459170,20.69612517,19.163,19.158,0.06297783]
[1693590459470,5.04612517,19.162,19.158,0.06297783]
[1693590459664,15.65,19.163,19.158,0.06297783]
[1693590459968,5.04543684,19.162,19.158,0.06297783]
[1693590460271,15.65,19.163,19.158,0.06297783]
[1693590460571,5.04497161,19.162,19.158,0.06297783]
[1693590460872,15.65,19.163,19.158,0.06297783]
[1693590461064,229.36,19.161,19.154,0.12598086]
[1693590462570,5.04056843,19.16,19.154,0.12598086]
[1693590462767,229.36,19.161,19.154,0.12598086]
[1693590462961,245.01,19.163,19.154,0.12598086]
[1693590463168,5.0421232,19.162,19.154,0.12598086]
[1693590464669,245.01,19.163,19.154,0.12598086]
[1693590465368,245.01,19.163,19.15,229.5490091]
[1693590465369,245.01,19.163,19.15,229.36]
[1693590465772,229.36,19.16,19.147,255.7218]
[1693590465975,229.36,19.16,19.147,234.87]
[1693590466367,229.36,19.16,19.147,229.36]
[1693590467975,245.01,19.163,19.15,229.36]
[1693590468177,229.36,19.163,19.15,229.36]
[1693590468973,245.01,19.163,19.15,229.36]
[1693590469171,5.04092666,19.162,19.15,229.36]
[1693590469475,229.36,19.163,19.15,229.36]
[1693590469673,229.36,19.16,19.147,229.36]
[1693590471771,15.66,19.163,19.144,26.6697]
[1693590471772,15.66,19.156,19.144,250.5097]
[1693590471963,15.66,19.156,19.138,5.52]
[1693590471964,229.36,19.154,19.141,229.36]
[1693590472170,229.36,19.154,19.146,0.25206253]
[1693590478184,41.921671,19.156,19.146,229.61206253]
[1693590478381,0.45454546,19.158,19.146,229.61206253]
[1693590478684,22.0461,19.159,19.15,229.36]
[1693590478984,270.50882505,19.162,19.15,229.36]
[1693590479888,41.14882505,19.162,19.152,229.36]
[1693590480183,245.02,19.165,19.152,229.36]
[1693590480385,5.04054591,19.164,19.152,229.36]
[1693590483777,5.04054591,19.164,19.155,229.36]
[1693590485688,15.66,19.163,19.155,229.36]
[1693590485891,42.77661794,19.165,19.155,229.36]
[1693590486088,15.66,19.163,19.155,229.36]
[1693590486388,229.36,19.172,19.158,229.36]
[1693590486585,5.0391193,19.171,19.158,229.36]
[1693590486784,22.141,19.174,19.161,229.36]
[1693590486785,251.501,19.174,19.161,229.36]
[1693590486986,20.6986695,19.173,19.161,229.36]
[1693590487187,5.0386695,19.172,19.161,229.36]
[1693590487388,5.0386695,19.172,19.163,229.36]
[1693590488181,5.0386695,19.172,19.161,229.36]
[1693590489192,5.0386695,19.173,19.168,5.52]
[1693590489386,5.03515766,19.172,19.168,5.52]
[1693590489586,5.03515766,19.172,19.163,229.36]
[1693590489793,15.66,19.17,19.161,5.52]
[1693590489991,229.36,19.173,19.161,5.52]
[1693590490185,5.03423959,19.172,19.161,5.52]
[1693590490390,5.03423959,19.172,19.163,229.36]
[1693590490694,20.68084546,19.177,19.164,229.36]
[1693590490695,229.36,19.177,19.164,229.36]
[1693590490886,15.66,19.173,19.161,5.52]
[1693590491084,5.03436833,19.172,19.161,5.52]
[1693590491285,15.66,19.17,19.161,5.52]
[1693590491883,20.2263,19.172,19.161,229.36]
[1693590491884,5.0385132,19.169,19.161,229.36]
[1693590492093,20.2263,19.172,19.161,229.36]
[1693590492287,15.66,19.17,19.161,229.36]
[1693590492495,5.03939561,19.169,19.16,5.52]
[1693590492692,229.36,19.172,19.16,5.52]
[1693590492891,15.66,19.17,19.16,5.52]
[1693590493091,5.03923162,19.169,19.16,5.52]
[1693590493296,229.36,19.172,19.16,5.52]
[1693590493495,15.66,19.17,19.16,5.52]
[1693590493800,5.03906937,19.169,19.157,229.36]
[1693590493999,15.66,19.167,19.157,229.36]
[1693590494294,15.66,19.165,19.158,5.52]
[1693590494493,245.02,19.17,19.158,5.52]
[1693590494804,5.03912618,19.169,19.16,5.52]
[1693590495490,15.66,19.17,19.16,5.52]
[1693590495695,5.03785085,19.169,19.16,5.52]
[1693590496895,234.39785085,19.169,19.158,5.52]
[1693590497198,15.66,19.165,19.154,5.52]
[1693590497394,5.03785085,19.164,19.154,5.52]
[1693590497597,0.45454546,19.166,19.157,5.52]
[1693590497795,15.66,19.167,19.157,5.52]
[1693590497991,15.66,19.165,19.157,5.52]
[1693590498299,5.03963635,19.164,19.157,5.52]
[1693590498501,15.66,19.165,19.157,5.52]
[1693590498799,5.03977058,19.164,19.157,5.52]
[1693590499099,15.66,19.165,19.157,5.52]
[1693590499300,271.38087682,19.169,19.157,5.52]
[1693590499301,15.66,19.167,19.157,5.52]
[1693590499599,15.66,19.165,19.154,5.52]
[1693590501600,229.36,19.163,19.151,229.36]
[1693590501898,245.02,19.161,19.149,5.52]
[1693590502294,245.02,19.161,19.15,0.06300411]
[1693590503299,21.2911,19.162,19.152,5.52]
[1693590504698,15.66,19.161,19.152,5.52]
[1693590507101,15.66,19.161,19.151,229.36]
[1693590507102,245.02,19.161,19.15,0.06300411]
[1693590507302,124.74,19.157,19.15,0.06300411]
[1693590507801,0.45454546,19.156,19.15,0.06300411]
[1693590508908,0.45454546,19.159,19.15,0.06300411]
[1693590510506,124.74,19.157,19.15,0.06300411]
[1693590510706,0.45454546,19.156,19.15,0.06300411]
[1693590512606,124.74,19.155,19.15,0.06300411]
[1693590515110,124.74,19.152,19.146,0.12603344]
[1693590515309,41.16971278,19.156,19.138,0.25216777]
[1693590515310,124.74,19.149,19.138,5.77216777]
[1693590516905,15.66,19.145,19.138,0.25216777]
[1693590517506,228.95,19.147,19.138,0.25216777]
[1693590518707,0.45454546,19.151,19.138,0.25216777]
[1693590518708,228.95,19.143,19.138,0.25216777]
[1693590518905,228.95,19.143,19.134,0.3152728]
[1693590519207,228.95,19.14,19.134,0.3152728]
[1693590521209,15.66,19.135,19.13,0.37840311]
[1693590523815,228.95,19.138,19.13,0.37840311]
[1693590524111,0.45454546,19.137,19.13,0.37840311]
[1693590524313,228.95,19.143,19.13,0.37840311]
[1693590524314,42.64715106,19.14,19.13,0.37840311]
[1693590524513,228.95,19.143,19.13,0.37840311]
[1693590525407,228.95,19.143,19.126,5.52]
[1693590525610,228.95,19.138,19.126,5.52]
[1693590525816,228.95,19.135,19.121,228.95]
[1693590526310,21.988,19.134,19.121,228.95]
[1693590532123,15.68,19.131,19.122,0.25237844]
[1693590534027,21.988,19.134,19.122,0.25237844]
[1693590534028,228.95,19.129,19.122,0.25237844]
[1693590537029,228.95,19.132,19.122,0.25237844]
[1693590537227,21.988,19.134,19.122,229.20237844]
[1693590537622,15.68,19.135,19.122,229.20237844]
[1693590538423,500.0,19.142,19.122,229.20237844]
[1693590538424,228.95,19.141,19.129,5.54]
[1693590538731,249.6561,19.141,19.129,5.54]
[1693590540035,228.95,19.138,19.126,5.54]
[1693590540432,228.95,19.138,19.122,0.25237844]
[1693590540433,228.95,19.135,19.122,228.95]
[1693590540633,15.68,19.131,19.118,228.95]
[1693590546029,228.95,19.129,19.126,0.0630831]
[1693590546235,228.95,19.129,19.122,0.12619144]
[1693590546436,15.68,19.127,19.122,0.12619144]
[1693590547340,15.68,19.127,19.118,0.18932504]
[1693590547835,15.68,19.122,19.118,0.18932504]
[1693590548033,15.68,19.122,19.114,0.2524839]
[1693590548240,15.68,19.12,19.114,0.2524839]
[1693590548436,125.11,19.121,19.114,0.2524839]
[1693590548641,125.11,19.124,19.114,0.2524839]
[1693590549336,125.11,19.118,19.105,125.11]
[1693590549548,0.45454546,19.117,19.105,125.11]
[1693590549739,125.11,19.118,19.111,5.54]
[1693590550341,125.11,19.12,19.111,5.54]
[1693590550841,0.45454546,19.119,19.108,125.11]
[1693590551037,125.11,19.117,19.105,5.54]
[1693590551536,125.56454546,19.117,19.105,5.54]
[1693590551738,125.11,19.117,19.105,5.54]
[1693590551939,125.11,19.117,19.105,125.11]
[1693590552340,0.45454546,19.117,19.105,229.62]
[1693590555848,229.62,19.116,19.103,229.62]
[1693590557448,15.68,19.112,19.1,5.54]
[1693590558547,229.62,19.113,19.1,5.54]
[1693590558748,42.43642071,19.117,19.106,229.62]
[1693590559047,20.6627,19.119,19.106,229.62]
[1693590562050,229.62,19.124,19.111,229.62]
[1693590563659,40.88330716,19.127,19.117,229.62]
[1693590563951,21.1744,19.135,19.124,5.55]
[1693590564142,21.1744,19.135,19.123,229.62]
[1693590564347,0.45454546,19.14,19.124,5.55]
[1693590564549,229.62,19.138,19.124,5.55]
[1693590564744,245.31,19.138,19.124,5.55]
[1693590565346,15.69,19.138,19.127,229.62]
[1693590571752,15.69,19.138,19.13,229.62]
[1693590572253,15.69,19.138,19.131,124.95]
[1693590573749,63.47267314,19.14,19.134,124.95]
[1693590574048,21.1744,19.14,19.134,124.95]
[1693590574448,15.69,19.145,19.134,124.95]
[1693590574650,37.0899,19.145,19.134,124.95]
[1693590574951,21.3999,19.145,19.137,124.95]
[1693590575153,21.3999,19.145,19.138,5.55]
[1693590575352,124.95,19.148,19.138,5.55]
[1693590575554,26.44946197,19.147,19.137,124.95]
[1693590575749,140.64,19.145,19.134,124.95]
[1693590575952,124.95,19.145,19.134,124.95]
[1693590577354,729.08,19.143,19.13,229.08]
[1693590577550,229.08,19.14,19.127,229.08]
[1693590577750,15.69,19.138,19.127,229.08]
[1693590579857,229.08,19.143,19.12,921.87]
[1693590579858,229.08,19.143,19.13,229.08]
[1693590580152,5.04629119,19.142,19.133,229.08]
[1693590580454,15.69,19.145,19.133,229.08]
[1693590580653,5.04628885,19.144,19.133,229.08]
[1693590581554,58.08205436,19.145,19.133,229.08]
[1693590581756,42.39205436,19.145,19.135,229.08]
[1693590581954,229.08,19.145,19.132,229.08]
[1693590583257,271.22315569,19.148,19.135,229.08]
[1693590583456,270.76861023,19.148,19.135,229.08]
[1693590584650,41.68861023,19.148,19.138,229.08]
[1693590584855,41.68861023,19.148,19.142,229.08]
[1693590585260,15.69,19.152,19.142,229.08]
[1693590585462,5.04174672,19.151,19.142,229.08]
[1693590585657,15.69,19.152,19.142,229.08]
[1693590588152,15.69,19.152,19.144,229.08]
[1693590588557,21.5212,19.153,19.144,229.08]
[1693590588754,42.12441191,19.154,19.147,229.08]
[1693590588960,575.0,19.156,19.147,229.08]
[1693590589153,5.04255138,19.155,19.147,229.08]
[1693590589362,21.268,19.156,19.147,229.08]
[1693590589559,5.04228095,19.155,19.147,229.08]
[1693590589961,56.86389033,19.157,19.147,229.08]
[1693590590161,5.04226879,19.156,19.147,229.08]
[1693590592368,234.12226879,19.156,19.143,229.08]
[1693590592568,5.04226879,19.155,19.143,229.08]
[1693590597161,5.04226879,19.155,19.144,5.53]
[1693590598174,5.04226879,19.155,19.143,229.08]
[1693590598371,15.67,19.152,19.14,229.08]
[1693590598973,15.67,19.152,19.14,228.84]
[1693590600967,15.67,19.152,19.136,915.36]
[1693590600968,228.84,19.15,19.136,228.84]
[1693590601170,228.84,19.147,19.136,228.84]
[1693590602876,0.45454546,19.148,19.136,228.84]
[1693590603079,0.45454546,19.148,19.14,5.53]
[1693590603879,270.98725847,19.152,19.14,5.53]
[1693590604074,42.14725847,19.152,19.146,5.53]
[1693590604272,20.744,19.156,19.146,5.53]
[1693590605177,20.744,19.156,19.145,228.84]
[1693590605380,15.67,19.157,19.146,5.53]
[1693590605576,5.04090232,19.156,19.146,5.53]
[1693590605779,5.04090232,19.156,19.145,228.84]
[1693590605972,5.04090232,19.156,19.146,5.53]
[1693590609278,5.04090232,19.156,19.145,228.84]
[1693590610377,5.04090232,19.156,19.142,228.84]
[1693590610585,250.3569,19.155,19.142,228.84]
[1693590610782,228.84,19.155,19.142,228.84]
[1693590610983,21.5169,19.154,19.142,228.84]
[1693590612684,15.67,19.157,19.146,228.84]
[1693590612874,5.03783574,19.156,19.146,228.84]
[1693590614685,15.67,19.157,19.146,228.84]
[1693590614985,5.03611966,19.156,19.146,228.84]
[1693590616887,5.03611966,19.156,19.149,228.84]
[1693590617882,5.03611966,19.156,19.146,5.53]
[1693590619188,5.03611966,19.156,19.148,228.84]
[1693590619687,5.03611966,19.156,19.149,5.52]
[1693590620089,5.03611966,19.156,19.148,228.84]
[1693590620890,46.11392643,19.156,19.148,228.84]
[1693590621085,5.03611966,19.155,19.148,228.84]
[1693590621286,15.67,19.157,19.148,228.84]
[1693590621493,5.03131556,19.156,19.148,228.84]
[1693590622290,5.03131556,19.156,19.148,124.74]
[1693590625697,129.77131556,19.156,19.144,124.74]
[1693590626002,5.03131556,19.155,19.142,124.74]
[1693590626202,124.74,19.154,19.142,124.74]
[1693590626398,15.66,19.152,19.142,124.74]
[1693590626603,124.74,19.15,19.138,124.74]
[1693590626903,0.45454546,19.149,19.138,124.74]
[1693590628202,0.45454546,19.149,19.14,5.52]
[1693590628593,5.4884037,19.149,19.14,5.52]
[1693590628901,0.45454546,19.148,19.14,5.52]
[1693590629699,0.45454546,19.149,19.14,5.52]
[1693590630400,5.48497931,19.149,19.14,5.52]
[1693590630605,0.45454546,19.148,19.141,124.74]
[1693590630905,0.45454546,19.149,19.141,124.74]
[1693590633502,5.48620461,19.149,19.141,124.74]
[1693590633703,0.45454546,19.148,19.141,124.74]
[1693590633897,0.45454546,19.149,19.141,124.74]
[1693590635102,5.48861719,19.149,19.139,20.2972]
[1693590635802,0.45454546,19.149,19.139,20.2972]
[1693590636403,5.48908658,19.149,19.139,20.2972]
[1693590637801,124.74,19.147,19.135,124.74]
[1693590640512,0.45454546,19.149,19.13,20.4471]
[1693590640513,125.19454546,19.149,19.138,124.74]
[1693590640702,5.04273914,19.148,19.138,124.74]
[1693590642513,0.45454546,19.149,19.14,5.52]
[1693590643704,5.49776448,19.149,19.14,5.52]
[1693590643908,124.74,19.143,19.13,20.0377]
[1693590644103,15.66,19.138,19.13,20.0377]
[1693590646414,124.74,19.139,19.13,20.0377]
[1693590646910,124.74,19.139,19.127,124.74]
[1693590647614,15.66,19.138,19.127,124.74]
[1693590649611,124.74,19.139,19.127,124.74]
[1693590649910,15.68,19.138,19.127,124.74]
[1693590650712,124.74,19.138,19.126,5.54]
[1693590658417,15.68,19.131,19.12,124.74]
[1693590658720,124.74,19.129,19.117,124.74]
[1693590661319,124.74,19.126,19.114,146.0435]
[1693590661812,124.74,19.126,19.114,124.74]
[1693590662013,124.74,19.124,19.111,124.74]
[1693590662217,140.42,19.124,19.111,124.74]
[1693590663414,124.74,19.12,19.108,145.0529]
[1693590663613,124.74,19.12,19.108,124.74]
[1693590665116,124.74,19.123,19.111,124.74]
[1693590666921,97.9651,19.123,19.111,124.74]
[1693590668024,16.13454546,19.127,19.105,5.54]
[1693590668025,124.74,19.126,19.114,124.74]
[1693590670621,15.68,19.124,19.114,124.74]
[1693590671022,124.74,19.12,19.108,124.74]
[1693590672628,15.68,19.114,19.105,5.54]
[1693590673323,36.4214,19.114,19.105,5.54]
[1693590676230,36.4214,19.114,19.111,0.25252328]
[1693590676426,36.4214,19.114,19.105,5.54]
[1693590678534,20.7414,19.114,19.105,5.54]
[1693590678731,36.4214,19.114,19.111,0.25252328]
[1693590678935,20.7414,19.114,19.111,0.25252328]
[1693590683439,36.4414,19.114,19.111,0.25252328]
[1693590687740,15.7,19.114,19.107,0.31571729]
[1693590690846,124.74,19.112,19.107,0.31571729]
[1693590696258,124.74,19.112,19.103,0.37893659]
[1693590697459,124.74,19.114,19.103,0.37893659]
[1693590698548,124.74,19.117,19.105,124.74]
[1693590701257,15.7,19.114,19.103,0.37893659]
[1693590701565,124.74,19.112,19.103,0.37893659]
[1693590701765,124.74,19.108,19.103,0.37893659]
[1693590705464,124.74,19.108,19.096,124.74]
[1693590705661,21.1985,19.107,19.096,124.74]
[1693590706263,21.1985,19.107,19.094,5.56]
[1693590706462,21.1985,19.107,19.093,124.74]
[1693590706463,124.74,19.103,19.091,5.56]
[1693590707360,124.74,19.103,19.092,124.74]
[1693590709066,0.45454546,19.106,19.096,5.56]
[1693590711467,15.7,19.103,19.092,124.74]
[1693590711663,124.74,19.101,19.089,124.74]
[1693590711968,124.74,19.098,19.087,124.74]
[1693590714473,124.74,19.103,19.091,124.74]
[1693590714870,124.74,19.1,19.089,5.56]
[1693590715674,15.7,19.099,19.089,5.56]
[1693590715874,22.087,19.099,19.089,5.56]
[1693590716074,22.087,19.099,19.088,124.74]
[1693590716075,124.74,19.097,19.085,124.74]
[1693590716271,541.06862231,19.103,19.082,124.74]
[1693590716272,124.74,19.094,19.082,124.74]
[1693590716771,22.087,19.093,19.082,124.74]
[1693590717979,22.087,19.093,19.084,124.74]
[1693590718175,124.74,19.096,19.084,124.74]
[1693590726981,124.74,19.092,19.081,5.56]
[1693590731085,124.74,19.097,19.085,124.74]
[1693590732083,124.74,19.099,19.087,124.74]
[1693590738291,124.74,19.096,19.084,124.74]
[1693590740592,124.74,19.099,19.087,124.74]
[1693590741794,124.74,19.101,19.091,5.57]
[1693590745499,124.74,19.101,19.082,500.0]
[1693590745500,41.75170245,19.104,19.096,5.57]
[1693590745698,0.45454546,19.106,19.096,5.57]
[1693590747197,124.74,19.12,19.105,130.31]
[1693590747401,124.74,19.12,19.109,124.74]
[1693590748306,58.29848167,19.122,19.111,124.74]
[1693590748502,15.71,19.122,19.111,124.74]
[1693590749201,124.74,19.13,19.118,124.74]
[1693590749446,20.9259,19.127,19.118,124.74]
[1693590750008,20.9259,19.127,19.117,124.74]
[1693590751899,124.74,19.126,19.114,124.74]
[1693590753905,124.74,19.126,19.106,0.51769451]
[1693590754101,15.71,19.122,19.111,124.74]
[1693590754503,20.9259,19.127,19.116,5.57]
[1693590754504,36.6359,19.127,19.116,5.57]
[1693590755108,15.71,19.127,19.116,5.57]
[1693590755308,41.66945606,19.131,19.12,5.57]
[1693590755309,21.6354,19.126,19.12,5.57]
[1693590755503,21.6354,19.126,19.122,124.74]
[1693590755908,124.74,19.134,19.122,124.74]
[1693590756113,15.71,19.132,19.122,124.74]
[1693590757514,15.71,19.132,19.121,229.27]
[1693590759345,244.98,19.132,19.119,229.27]
[1693590760414,244.98,19.132,19.12,5.57]
[1693590761516,15.71,19.132,19.122,229.27]
[1693590761920,15.71,19.132,19.126,5.57]
[1693590763516,15.71,19.132,19.125,229.27]
[1693590767220,15.71,19.132,19.126,5.57]
[1693590767521,15.71,19.132,19.125,229.27]
[1693590769117,229.27,19.144,19.131,229.27]
[1693590769323,20.8934,19.14,19.131,229.27]
[1693590769723,270.99713015,19.144,19.131,229.27]
[1693590769918,5.03759425,19.143,19.131,229.27]
[1693590773618,5.03759425,19.143,19.128,229.27]
[1693590773825,20.8115,19.142,19.128,229.27]
[1693590774020,270.99713015,19.144,19.128,229.27]
[1693590774227,229.27,19.141,19.135,0.80852848]
[1693590774423,41.72713015,19.144,19.135,6.34852848]
[1693590774727,229.27,19.147,19.135,6.34852848]
[1693590774931,244.95,19.145,19.135,0.80852848]
[1693590775127,5.04166773,19.144,19.135,0.80852848]
[1693590776024,5.04166773,19.144,19.132,229.27]
[1693590776425,229.27,19.142,19.128,229.27]
[1693590777025,15.68,19.135,19.123,229.27]
[1693590779327,15.68,19.135,19.113,0.45454546]
[1693590779328,15.68,19.132,19.12,229.27]
[1693590779626,229.27,19.13,19.117,229.27]
[1693590780331,15.68,19.127,19.115,229.27]
[1693590780726,15.68,19.124,19.111,229.27]
[1693590785323,57.8013389,19.124,19.111,229.27]
[1693590785728,229.27,19.125,19.113,229.27]
[1693590785927,21.0438,19.131,19.12,5.54]
[1693590800248,229.27,19.13,19.117,229.27]
[1693590800445,229.27,19.13,19.118,0.45454546]
[1693590802249,15.69,19.127,19.118,0.45454546]
[1693590802551,15.69,19.127,19.117,0.45454546]
[1693590806852,125.12,19.13,19.118,125.12]
[1693590807252,21.0438,19.131,19.122,125.12]
[1693590809655,125.12,19.133,19.122,125.12]
[1693590809861,125.12,19.137,19.126,5.55]
[1693590810061,15.69,19.135,19.126,5.55]
[1693590810255,125.12,19.137,19.126,5.55]
[1693590810555,21.0521,19.14,19.129,125.12]
[1693590810556,146.1721,19.14,19.129,125.12]
[1693590812764,15.69,19.138,19.129,125.12]
[1693590812968,125.12,19.138,19.126,125.12]
[1693590813262,125.12,19.138,19.127,0.45454546]
[1693590815862,21.0521,19.14,19.123,125.12]
[1693590815863,125.12,19.135,19.123,125.12]
[1693590817064,125.12,19.135,19.124,5.55]
[1693590821666,166.13202299,19.135,19.124,5.55]
[1693590822068,56.70202299,19.135,19.124,125.12]
[1693590828869,125.12,19.136,19.124,125.12]
[1693590829067,146.1721,19.14,19.129,5.55]
[1693590829973,21.0521,19.14,19.132,5.55]
[1693590834569,21.0521,19.14,19.131,125.12]
[1693590835072,21.0521,19.14,19.132,5.54]
[1693590836366,21.0521,19.14,19.135,5.54]
[1693590837676,41.07001044,19.144,19.135,5.54]
[1693590837867,5.03582035,19.143,19.135,5.54]
[1693590838065,5.03582035,19.143,19.128,500.48]
[1693590838066,125.12,19.149,19.138,125.12]
[1693590838370,21.4469,19.147,19.144,125.12]
[1693590839182,563.14454973,19.16,19.144,125.12]
[1693590839372,26.35751696,19.159,19.149,125.12]
[1693590839571,5.03671696,19.158,19.149,125.12]
[1693590839765,5.03671696,19.158,19.144,500.48]
[1693590839766,5.03671696,19.158,19.153,125.12]
[1693590839965,5.03671696,19.158,19.149,125.12]
[1693590840177,5.03671696,19.158,19.146,5.54]
[1693590840376,5.03671696,19.158,19.152,125.12]
[1693590840769,21.3208,19.159,19.154,125.12]
[1693590841671,21.3208,19.159,19.152,125.12]
[1693590842175,15.68,19.152,19.141,125.12]
[1693590842774,125.12,19.15,19.138,130.66]
[1693590842975,125.12,19.15,19.138,125.12]
[1693590843976,125.12,19.15,19.138,130.66]
[1693590844178,125.12,19.15,19.138,125.12]
[1693590844680,125.12,19.15,19.138,130.66]
[1693590844880,125.12,19.15,19.138,125.12]
[1693590845280,125.12,19.152,19.14,125.12]
[1693590847278,15.68,19.152,19.14,228.77]
[1693590847780,228.77,19.149,19.138,5.54]
[1693590848683,20.3357,19.151,19.138,5.54]
[1693590850078,20.3357,19.151,19.138,31.66603]
[1693590850279,228.77,19.155,19.142,228.77]